bitfinex-derivatives/quotes_ETHF0:USTF0_20250708
["timestamp","ask_amount","ask_price","bid_price","bid_amount"]
[1752007465123,0.76637,2609.3,2609.2,0.76638]
[1752007465328,1.39657,2609.3,2609.2,0.76638]
[1752007465524,1.6368,2609.3,2609.0,0.75963653]
[1752007465728,0.6302,2609.3,2609.2,0.76638]
[1752007466026,1.39657,2609.3,2609.2,0.59889995]
[1752007466329,2.71260114,2609.3,2609.2,0.59889995]
[1752007466530,5.10509671,2609.3,2609.2,0.59889995]
[1752007467125,3.71920114,2609.3,2609.2,0.59889995]
[1752007467827,3.71920114,2609.3,2609.0,0.76646]
[1752007467828,0.76643,2609.1,2609.0,0.76646]
[1752007468029,2.40323,2609.1,2609.0,0.76646]
[1752007468427,0.76652,2608.9,2608.8,0.76649]
[1752007468622,1.39672,2608.9,2608.8,0.76649]
[1752007468823,2.40332,2608.9,2608.8,0.76649]
[1752007469031,1.6368,2608.9,2608.8,0.76649]
[1752007469430,3.65939,2608.9,2608.8,0.76649]
[1752007469632,2.8929,2608.9,2608.8,0.76649]
[1752007470130,3.65939,2608.9,2608.8,0.76649]
[1752007470730,2.8929,2608.9,2608.5,4.52383114]
[1752007471030,3.02924,2608.8,2608.7,0.76655]
[1752007471230,0.76661,2608.5,2608.4,0.76663]
[1752007471433,1.6368,2608.5,2608.4,0.76663]
[1752007471929,2.9555,2608.5,2608.4,0.76663]
[1752007472131,0.76667,2608.3,2608.1,0.76671]
[1752007472322,1.6368,2608.2,2608.1,0.76671]
[1752007472529,0.76673,2608.1,2607.9,3.2078]
[1752007472745,1.6368,2608.0,2607.9,7.79785059]
[1752007473131,1.6368,2608.0,2607.9,8.56463059]
[1752007473429,2.9555,2608.0,2607.9,3.97458]
[1752007477335,1.6368,2608.0,2607.9,3.97458]
[1752007477532,0.6302,2608.0,2607.9,3.97458]
[1752007479034,1.0066,2608.2,2608.1,0.76672]
[1752007479233,1.6368,2608.2,2608.1,0.76672]
[1752007481934,1.2832,2608.4,2608.0,1.31603114]
[1752007481935,1.2832,2608.4,2608.0,3.23289114]
[1752007482136,1.9134,2608.4,2608.3,0.76666]
[1752007482335,2.92,2608.4,2608.3,0.76666]
[1752007483333,1.9161,2609.1,2608.2,1.31603114]
[1752007483334,3.2078,2608.9,2608.2,4.52383114]
[1752007483543,0.6302,2608.7,2608.6,2.08261114]
[1752007483736,1.6368,2608.7,2608.6,0.76658]
[1752007484743,2.9385,2608.7,2608.6,0.76658]
[1752007501845,3.70505,2608.7,2608.6,0.76658]
[1752007504052,2.9385,2608.7,2608.6,0.76658]
[1752007504652,3.70505,2608.7,2608.6,0.76658]
[1752007506549,2.9385,2608.7,2608.6,0.76658]
[1752007508545,3.70505,2608.7,2608.6,0.76658]
[1752007509757,3.70505,2608.7,2608.5,3.43091933]
[1752007509957,1.3666,2608.6,2608.5,4.19752933]
[1752007510158,2.9954,2608.6,2608.5,4.19752933]
[1752007512154,2.80648,2608.6,2608.5,3.43091933]
[1752007512359,3.76198,2608.6,2608.5,3.43091933]
[1752007512553,6.96978,2608.6,2608.5,3.43091933]
[1752007513354,8.28581114,2608.6,2608.5,3.43091933]
[1752007514158,8.28581114,2608.6,2608.5,4.19752933]
[1752007514359,0.76661,2608.5,2608.4,4.19753933]
[1752007514560,3.47781,2608.5,2608.4,4.19753933]
[1752007514761,4.43331,2608.5,2608.4,3.43091933]
[1752007515158,4.43331,2608.5,2608.4,4.19754933]
[1752007516360,3.6667,2608.5,2608.4,4.19754933]
[1752007516759,3.6667,2608.5,2608.4,0.76663]
[1752007517664,4.43331,2608.5,2608.4,0.76663]
[1752007517962,3.6667,2608.5,2608.4,0.76663]
[1752007518564,4.43331,2608.5,2608.3,0.76664]
[1752007518963,4.43331,2608.5,2608.4,0.76663]
[1752007519565,4.43332,2608.5,2608.3,0.76665]
[1752007520264,4.43332,2608.5,2608.4,0.76663]
[1752007521365,3.6667,2608.5,2608.4,0.76663]
[1752007525063,1.3612,2608.5,2608.4,0.76663]
[1752007528068,2.3544,2608.5,2608.4,0.76663]
[1752007543181,0.9932,2608.8,2608.5,1.91652]
[1752007543479,0.6464,2608.6,2608.5,0.76661]
[1752007544280,3.8542,2608.6,2608.5,4.21574078]
[1752007544575,6.04064252,2608.6,2608.5,3.44913078]
[1752007544778,11.04064252,2608.6,2608.5,2.40713078]
[1752007544977,0.76662,2608.5,2608.4,3.44970044]
[1752007545276,3.50251366,2608.5,2608.4,3.44970044]
[1752007545683,3.50251366,2608.5,2608.0,1.91684]
[1752007545684,0.76671,2608.2,2608.0,4.59005059]
[1752007545982,2.08275114,2608.1,2608.0,4.59005059]
[1752007546279,2.08275114,2608.1,2608.0,0.76675]
[1752007546475,0.76675,2608.0,2607.9,0.76676]
[1752007546873,0.7668,2607.9,2607.7,4.59005059]
[1752007547078,5.29064114,2607.9,2607.8,0.76681]
[1752007547273,5.29064114,2607.9,2607.3,26.0]
[1752007547274,4.52383114,2607.9,2607.5,4.59005059]
[1752007547481,0.76683,2607.8,2607.7,0.76684]
[1752007547777,0.76686,2607.7,2607.6,0.76685]
[1752007547978,3.2078,2607.9,2607.2,5.12527]
[1752007547979,0.76688,2607.6,2607.5,0.76688]
[1752007548180,3.97468,2607.6,2607.5,0.76688]
[1752007548380,5.61428,2607.6,2607.5,0.76688]
[1752007548683,6.93031114,2607.6,2607.5,0.76688]
[1752007549086,6.16343114,2607.6,2607.5,0.76688]
[1752007549287,0.76693,2607.4,2607.3,0.76696]
[1752007549483,3.72258114,2607.4,2606.9,3.2078]
[1752007549687,3.72258114,2607.4,2607.2,0.76699]
[1752007549688,2.989,2607.3,2607.2,0.76699]
[1752007549888,3.6354,2607.3,2607.2,0.76699]
[1752007550488,7.61016,2607.3,2607.2,0.76699]
[1752007550689,6.8432,2607.3,2607.2,0.76699]
[1752007551390,6.8432,2607.3,2606.9,3.2078]
[1752007551391,7.61016,2607.3,2606.9,3.2078]
[1752007551590,0.9932,2607.2,2607.1,0.76701]
[1752007551790,2.3397,2607.2,2607.1,0.76701]
[1752007551989,2.9915,2607.2,2607.1,0.76701]
[1752007555495,0.76702,2607.1,2606.9,3.97486]
[1752007555795,0.6518,2607.0,2606.9,3.97486]
[1752007556197,1.6925,2607.0,2606.9,3.97486]
[1752007556790,5.56453114,2607.6,2606.9,4.52383114]
[1752007556996,0.6518,2607.1,2607.0,0.76705]
[1752007560304,1.31603114,2607.4,2607.3,0.75412755]
[1752007560603,1.96783114,2607.4,2607.3,0.75412755]
[1752007560904,3.00853114,2607.4,2607.3,0.75412755]
[1752007561106,1.6925,2607.4,2607.3,0.75412755]
[1752007573013,3.00853114,2607.4,2607.3,0.75412755]
[1752007575112,3.77547114,2607.4,2607.0,1.91761]
[1752007575311,1.41874,2607.4,2607.3,0.76696]
[1752007575510,5.94257114,2607.4,2607.3,0.76696]
[1752007575712,7.44379398,2607.4,2607.3,0.76696]
[1752007575911,8.48449398,2607.4,2607.3,0.76696]
[1752007576112,6.98327114,2607.4,2607.3,0.76696]
[1752007576314,8.48574898,2607.4,2607.3,0.76696]
[1752007576921,8.48574898,2607.4,2607.2,0.76698]
[1752007576922,0.767,2607.3,2607.2,0.76698]
[1752007577217,3.96197784,2607.3,2607.2,0.76698]
[1752007578117,5.27800898,2607.3,2607.2,0.76698]
[1752007578821,4.51100898,2607.3,2607.2,0.76698]
[1752007579121,3.19497784,2607.3,2607.2,0.76698]
[1752007579715,3.96193784,2607.3,2607.2,0.76698]
[1752007580520,3.19497784,2607.3,2607.2,0.76698]
[1752007581420,3.96193784,2607.3,2607.2,0.76698]
[1752007583924,0.76699,2607.2,2607.1,1.43079]
[1752007584122,2.44439,2607.2,2607.1,1.43079]
[1752007584424,1.6774,2607.2,2607.1,1.43079]
[1752007584924,2.44439,2607.2,2607.1,1.43079]
[1752007585925,1.6774,2607.2,2607.1,1.43079]
[1752007586118,3.17830317,2607.2,2607.1,0.76702]
[1752007586625,4.61238114,2607.2,2607.1,0.76702]
[1752007586921,3.84537114,2607.2,2607.1,0.76702]
[1752007587625,4.61236114,2607.2,2607.1,0.76702]
[1752007588726,4.61236114,2607.2,2607.0,0.6916]
[1752007588727,0.76702,2607.1,2607.0,0.6916]
[1752007588926,6.96825114,2607.1,2607.0,0.76705]
[1752007589122,7.24665114,2607.1,2607.0,0.76705]
[1752007589320,8.26345114,2607.1,2607.0,0.76705]
[1752007589523,7.49643114,2607.1,2607.0,0.76705]
[1752007589727,4.8852,2607.1,2607.0,0.76705]
[1752007592530,5.65222,2607.1,2607.0,0.76705]
[1752007592826,4.8852,2607.1,2606.8,0.6456]
[1752007593029,4.8852,2607.1,2606.9,0.76706]
[1752007593030,4.63544,2607.1,2606.9,0.76706]
[1752007593232,1.0168,2607.0,2606.9,0.76706]
[1752007593531,1.6774,2607.0,2606.9,0.76706]
[1752007598235,2.44445,2607.0,2606.9,0.76706]
[1752007598437,3.71865,2607.0,2606.9,0.76706]
[1752007598638,2.9516,2607.0,2606.9,0.76706]
[1752007600135,1.6774,2607.0,2606.9,0.76706]
[1752007601834,0.6606,2607.0,2606.9,0.76706]
[1752007602139,3.2078,2607.5,2607.4,0.76693]
[1752007602340,6.38744284,2607.5,2607.4,0.76693]
[1752007605938,5.37064284,2607.5,2607.4,0.76693]
[1752007609242,2.16284284,2607.5,2607.4,0.76693]
[1752007611336,0.6606,2607.5,2607.4,0.76693]
[1752007611538,1.6774,2607.5,2607.4,0.76693]
[1752007614234,2.959,2607.5,2606.9,4.59005059]
[1752007614543,2.959,2607.5,2607.1,0.767]
[1752007614544,2.08299114,2607.3,2607.1,0.767]
[1752007614843,2.9883,2607.2,2606.8,3.2078]
[1752007615042,1.31603114,2607.0,2606.9,0.76708]
[1752007615336,3.78978114,2607.0,2606.9,0.76708]
[1752007615536,5.07138114,2607.0,2606.9,0.76708]
[1752007615732,4.30433114,2607.0,2606.9,0.76708]
[1752007616446,2.9883,2607.0,2606.9,0.76708]
[1752007624751,1.708,2607.2,2607.1,0.76702]
[1752007624949,2.3906,2607.2,2607.1,0.76702]
[1752007625349,1.3665,2607.2,2607.1,0.76702]
[1752007625951,2.3906,2607.2,2607.1,0.76702]
[1752007629850,0.6839,2607.2,2607.1,0.76702]
[1752007630050,2.4118,2607.5,2607.4,0.76693]
[1752007630255,4.59312712,2607.5,2607.4,0.76693]
[1752007631558,5.25872712,2607.5,2607.4,0.76693]
[1752007633154,3.87102712,2607.5,2607.4,0.76693]
[1752007633457,2.3723,2607.5,2607.4,0.76693]
[1752007634851,1.3482,2607.5,2607.4,0.76693]
[1752007636250,1.7067,2607.5,2607.4,0.76693]
[1752007636850,3.0838,2607.5,2607.4,0.76693]
[1752007637660,3.7541,2607.5,2607.4,0.76693]
[1752007645064,0.76694,2607.4,2607.3,0.76695]
[1752007645264,5.01447114,2607.4,2607.3,0.76695]
[1752007645465,4.24753114,2607.4,2607.3,0.76695]
[1752007646057,4.24753114,2607.4,2606.9,9.71553059]
[1752007646262,4.24753114,2607.4,2607.1,0.76702]
[1752007646263,1.31603114,2607.2,2607.1,0.76702]
[1752007646462,1.95833114,2607.2,2607.1,0.76702]
[1752007646664,4.93983114,2607.2,2607.1,0.76702]
[1752007648967,3.6238,2607.2,2607.1,0.76702]
[1752007660976,0.76706,2607.0,2606.8,0.76709]
[1752007661178,2.3228,2606.9,2606.8,0.76709]
[1752007661383,3.6985,2606.9,2606.8,0.76709]
[1752007661577,3.6985,2606.9,2606.8,0.76711]
[1752007661881,4.46558,2606.9,2606.6,30.60605059]
[1752007662082,2.3939,2606.8,2606.7,0.76714]
[1752007662282,3.0362,2606.8,2606.7,0.76714]
[1752007664076,4.35223114,2606.8,2606.5,4.59005059]
[1752007664376,1.31603114,2606.6,2606.4,0.7672]
[1752007664583,1.9275,2606.5,2606.4,0.7672]
[1752007664782,3.6032,2606.5,2606.4,0.7672]
[1752007668186,1.6605,2606.5,2606.4,0.7672]
[1752007668989,0.6868,2606.7,2606.6,0.76716]
[1752007669285,0.6423,2606.7,2606.6,0.76716]
[1752007670288,1.6605,2606.7,2606.6,0.76716]
[1752007670987,0.6423,2606.7,2606.6,0.76716]
[1752007671583,1.0182,2606.9,2606.6,0.76716]
[1752007671584,1.0182,2606.9,2606.8,0.76711]
[1752007671886,1.6587,2606.9,2606.8,0.76711]
[1752007673887,0.6405,2606.9,2606.8,0.76711]
[1752007674086,1.6732,2606.9,2606.8,0.76711]
[1752007675788,0.6405,2606.9,2606.8,0.76711]
[1752007678289,0.6405,2606.9,2606.8,3.97491]
[1752007678584,1.0327,2607.1,2607.0,0.76705]
[1752007678792,0.6457,2607.2,2607.1,0.76702]
[1752007679090,2.3189,2607.2,2607.1,0.76702]
[1752007681690,0.6405,2607.2,2607.1,3.97482]
[1752007682592,1.6732,2607.2,2607.1,3.97482]
[1752007684795,1.6732,2607.2,2607.1,0.76702]
[1752007689787,2.98923114,2607.2,2607.1,0.76702]
[1752007690593,4.29473114,2607.2,2607.1,0.76702]
[1752007691094,4.29473114,2607.2,2607.0,0.76702]
[1752007691296,3.79573,2607.1,2606.9,0.76708]
[1752007691496,4.35043114,2607.0,2606.9,0.76708]
[1752007692304,7.55823114,2607.0,2606.5,5.12573]
[1752007692599,3.8483,2607.0,2606.9,0.76708]
[1752007693201,4.881,2607.0,2606.9,0.76708]
[1752007693602,6.19703114,2607.0,2606.9,0.76708]
[1752007696408,6.96408114,2607.0,2606.9,0.76708]
[1752007696706,6.19703114,2607.0,2606.8,0.76709]
[1752007697008,6.19703114,2607.0,2606.5,31.19078]
[1752007697009,1.0327,2606.9,2606.7,0.76711]
[1752007697205,2.72364114,2606.8,2606.7,0.76711]
[1752007697405,0.76714,2606.7,2606.6,0.76715]
[1752007697608,1.40768,2606.6,2606.5,0.76717]
[1752007697806,3.75641114,2606.6,2606.5,0.76717]
[1752007699311,0.76721,2606.5,2606.4,0.7672]
[1752007699512,2.44041,2606.5,2606.4,0.7672]
[1752007700009,1.6732,2606.5,2606.4,0.7672]
[1752007700209,2.44039,2606.5,2606.4,0.7672]
[1752007701012,1.6732,2606.5,2606.4,0.7672]
[1752007703717,2.44039,2606.5,2606.4,0.7672]
[1752007703915,0.76722,2606.4,2606.1,3.2078]
[1752007704113,0.9907,2606.3,2606.2,26.82528]
[1752007704320,2.3188,2606.3,2606.2,26.82528]
[1752007704917,2.3188,2606.3,2606.2,0.76728]
[1752007705215,2.3188,2606.3,2606.2,26.82428]
[1752007707121,1.3281,2606.3,2606.2,26.82428]
[1752007707519,2.3188,2606.3,2606.2,26.82428]
[1752007710623,2.3188,2606.3,2606.2,0.76728]
[1752007710819,2.3188,2606.3,2606.2,26.82128]
[1752007711220,2.3188,2606.3,2606.2,0.76728]
[1752007711420,2.3188,2606.3,2606.2,26.82428]
[1752007712024,5.5266,2606.3,2605.9,3.83674]
[1752007712225,2.64413114,2606.3,2606.2,0.76728]
[1752007712626,5.85193114,2606.3,2606.2,0.76728]
[1752007712826,6.84263114,2606.3,2606.2,0.76728]
[1752007714930,5.5266,2606.3,2606.2,0.76728]
[1752007724733,2.3188,2606.3,2606.2,0.76728]
[1752007728132,1.6375,2606.3,2606.2,0.76728]
[1752007728435,0.6468,2606.3,2606.2,2.08331114]
[1752007734033,0.6468,2606.3,2606.2,0.76728]
[1752007734240,1.5901,2606.3,2606.2,26.81228]
[1752007734733,1.5901,2606.3,2606.2,26.80928]
[1752007736439,1.5901,2606.3,2606.2,0.76728]
[1752007736940,2.35735,2606.3,2606.2,0.76728]
[1752007737342,2.946,2606.3,2606.2,0.76728]
[1752007737533,3.71325,2606.3,2606.2,0.76728]
[1752007740033,2.946,2606.3,2606.2,0.76728]
[1752007741443,3.71325,2606.3,2606.2,0.76728]
[1752007742544,5.21235341,2606.3,2606.2,0.76728]
[1752007743745,4.44510341,2606.3,2606.2,0.76728]
[1752007745149,5.21235341,2606.3,2606.2,0.76728]
[1752007745447,4.44510341,2606.3,2606.2,0.76728]
[1752007747648,3.08920341,2606.3,2606.2,0.76728]
[1752007750350,1.5901,2606.3,2606.2,0.76728]
[1752007759056,0.76728,2606.2,2606.1,0.76728]
[1752007759263,3.73548,2606.2,2606.1,0.76728]
[1752007759461,4.42818,2606.2,2606.1,0.76728]
[1752007759662,3.6609,2606.2,2606.1,0.76728]
[1752007760064,4.42818,2606.2,2606.1,0.76728]
[1752007760462,3.6609,2606.2,2606.1,0.76728]
[1752007761362,4.42818,2606.2,2606.1,0.76728]
[1752007761561,3.6609,2606.2,2606.1,0.76728]
[1752007762364,4.42818,2606.2,2606.1,0.76728]
[1752007762565,3.6609,2606.2,2606.1,0.76728]
[1752007763265,4.42818,2606.2,2606.1,0.76728]
[1752007763968,3.6609,2606.2,2606.1,0.76728]
[1752007764568,4.42818,2606.2,2606.1,0.76728]
[1752007765768,0.76733,2606.1,2606.0,0.76731]
[1752007766068,2.35903,2606.1,2606.0,0.76731]
[1752007767268,1.5917,2606.1,2606.0,0.76731]
[1752007767462,2.35901,2606.1,2606.0,0.76731]
[1752007769068,1.5917,2606.1,2606.0,0.76731]
[1752007769568,2.35901,2606.1,2606.0,0.76731]
[1752007769766,3.64981,2606.1,2606.0,0.76731]
[1752007770266,4.80082,2606.1,2605.7,8.45265059]
[1752007770569,1.82299736,2605.9,2605.8,0.76738]
[1752007770768,2.47319736,2605.9,2605.8,0.76738]
[1752007770964,4.08739736,2605.9,2605.8,0.76738]
[1752007771364,3.32002736,2605.9,2605.8,0.76738]
[1752007772464,4.70612736,2605.9,2605.8,0.76738]
[1752007772859,3.6505,2605.9,2605.8,0.76738]
[1752007773161,5.7376594,2605.9,2605.8,0.76738]
[1752007774971,4.9702894,2605.9,2605.8,0.76738]
[1752007776872,3.6505,2605.9,2605.8,0.76738]
[1752007778275,3.6505,2605.9,2605.8,0.7674]
[1752007783179,2.2644,2605.9,2605.8,0.7674]
[1752007794884,3.3202065,2605.9,2605.8,0.7674]
[1752007795580,3.3202065,2605.9,2605.5,5.78006]
[1752007795779,1.0558065,2605.7,2605.6,0.76746]
[1752007795974,2.6950065,2605.7,2605.6,0.76746]
[1752007797180,1.6392,2605.7,2605.6,0.76746]
[1752007798688,0.6462,2605.7,2605.6,0.76746]
[1752007800485,1.6392,2605.7,2605.6,0.76746]
[1752007805289,2.6950065,2605.7,2605.6,0.76746]
[1752007806288,3.4624565,2605.7,2605.6,0.76746]
[1752007806594,6.30847575,2605.7,2605.6,0.76746]
[1752007808693,0.76749,2605.6,2605.5,0.76747]
[1752007808892,5.48292483,2605.6,2605.5,0.76747]
[1752007809095,7.24338483,2605.6,2605.5,0.76747]
[1752007809292,0.76751,2605.5,2605.4,0.76749]
[1752007809493,0.76754,2605.4,2605.3,0.76753]
[1752007809693,2.73408266,2605.4,2605.3,0.76753]
[1752007809893,4.23254266,2605.4,2605.3,0.76753]
[1752007810293,5.00006266,2605.4,2605.3,0.76753]
[1752007810691,4.23254266,2605.4,2605.3,0.76753]
[1752007811397,5.00006266,2605.4,2605.3,0.76753]
[1752007811895,4.23254266,2605.4,2605.3,0.76753]
[1752007812197,5.00006266,2605.4,2605.3,0.76753]
[1752007812398,4.23254266,2605.4,2605.3,0.76753]
[1752007812899,0.76756,2605.3,2605.2,0.76757]
[1752007813096,3.5846,2605.3,2605.2,0.76757]
[1752007813296,2.3086,2605.3,2605.2,0.76757]
[1752007813994,0.6694,2605.7,2605.6,0.76746]
[1752007814194,1.3156,2605.7,2605.6,0.76746]
[1752007814391,0.6462,2605.7,2605.6,2.08780266]
[1752007814798,0.6462,2605.7,2605.6,0.76746]
[1752007816002,0.993,2606.0,2605.9,0.76737]
[1752007816590,0.993,2606.0,2605.9,1.44997]
[1752007817504,3.2078,2606.4,2606.3,0.76725]
[1752007817796,5.3493935,2606.4,2606.3,0.76725]
[1752007818200,6.3423935,2606.4,2606.3,0.76725]
[1752007818997,7.6000935,2606.4,2606.3,0.76725]
[1752007819903,6.3423935,2606.4,2606.3,0.76725]
[1752007820603,4.847,2606.4,2606.3,0.76725]
[1752007821507,3.854,2606.4,2606.3,0.76725]
[1752007822101,4.847,2606.4,2606.3,0.76725]
[1752007822700,0.9682,2606.6,2606.5,0.76719]
[1752007822905,1.6372,2606.6,2606.5,0.76719]
[1752007823605,0.669,2606.6,2606.5,0.76719]
[1752007823806,1.6372,2606.6,2606.5,0.76719]
[1752007824002,2.9311,2606.6,2606.5,0.76719]
[1752007824607,2.9311,2606.6,2606.1,3.2078]
[1752007824908,2.9311,2606.6,2606.3,0.76725]
[1752007824909,1.32034266,2606.4,2606.3,0.76725]
[1752007825103,1.98934266,2606.4,2606.3,0.76725]
[1752007825305,4.98874266,2606.4,2606.3,0.76725]
[1752007826013,3.6684,2606.4,2606.3,0.76725]
[1752007826509,3.2078,2606.7,2606.6,0.76716]
[1752007826709,4.176,2606.7,2606.6,0.76716]
[1752007826905,4.845,2606.7,2606.6,0.76716]
[1752007834205,1.6372,2606.7,2606.6,0.76716]
[1752007834410,0.669,2606.7,2606.6,0.76716]
[1752007835707,1.6372,2606.7,2606.6,0.76716]
[1752007841111,0.669,2606.7,2606.6,2.08750266]
[1752007841309,0.9682,2606.9,2606.6,1.32034266]
[1752007841510,1.6372,2606.9,2606.8,3.97491]
[1752007856220,1.6372,2606.9,2606.8,0.76711]
[1752007864326,3.0124,2606.9,2606.8,0.76711]
[1752007875140,1.6372,2606.9,2606.8,0.76711]
[1752007883652,0.6648,2606.9,2606.7,10.78353199]
[1752007883856,0.6648,2606.9,2606.8,1.40881]
[1752007884645,1.6102,2607.1,2607.0,0.76705]
[1752007884850,1.4773172,2607.1,2607.0,1.82193057]
[1752007885452,0.6648,2607.1,2607.0,5.02973057]
[1752007886855,0.6648,2607.1,2607.0,3.97485]
[1752007887857,1.647,2607.3,2607.2,0.76699]
[1752007888057,3.78853559,2607.3,2607.2,0.76699]
[1752007898562,3.11713559,2607.3,2607.2,0.76699]
[1752007899458,1.6404,2607.3,2607.2,0.76699]
[1752007900858,3.0198,2607.3,2607.2,0.76699]
[1752007902259,0.6648,2607.3,2607.2,0.76699]
[1752007905059,1.6404,2607.3,2607.2,0.76699]
[1752007908065,1.6404,2607.3,2607.2,26.78099]
[1752007908662,1.6404,2607.3,2607.2,0.76699]
[1752007908863,1.6404,2607.3,2607.2,26.78099]
[1752007909063,2.9471,2607.3,2607.2,26.78099]
[1752007910466,2.9471,2607.3,2607.2,0.76699]
[1752007910667,2.9471,2607.3,2607.2,26.78099]
[1752007911967,2.9471,2607.3,2607.2,0.76699]
[1752007912167,2.9471,2607.3,2607.2,26.78099]
[1752007913562,2.9471,2607.3,2607.2,0.76699]
[1752007913767,2.9471,2607.3,2607.2,26.77999]
[1752007916061,2.9471,2607.3,2607.2,0.76699]
[1752007916266,0.76703,2607.1,2607.0,0.76703]
[1752007916470,5.94296643,2607.1,2607.0,0.76703]
[1752007916673,6.94936643,2607.1,2607.0,0.76703]
[1752007916974,0.76708,2607.0,2606.9,0.76706]
[1752007917175,2.42338,2607.0,2606.9,0.76706]
[1752007917470,2.9102,2607.0,2606.9,0.76706]
[1752007918270,3.67725,2607.0,2606.9,0.76706]
[1752007918764,2.9102,2607.0,2606.9,0.76706]
[1752007918969,4.22903552,2607.0,2606.9,0.76706]
[1752007919965,4.99608552,2607.0,2606.9,0.76706]
[1752007921077,4.22903552,2607.0,2606.9,0.76706]
[1752007921475,4.99608552,2607.0,2606.9,0.76706]
[1752007923981,4.99608552,2607.0,2606.8,0.76709]
[1752007924181,2.2714,2606.9,2606.8,0.76709]
[1752007924376,2.9213,2606.9,2606.8,0.76709]
[1752007924574,3.68838,2606.9,2606.8,0.76709]
[1752007924775,9.3922116,2606.9,2606.3,1.91814]
[1752007925080,0.76714,2606.7,2606.5,0.76718]
[1752007925269,1.9149,2606.6,2606.5,0.76718]
[1752007925676,2.9213,2606.6,2606.5,0.76718]
[1752007927777,3.68846,2606.6,2606.5,0.76718]
[1752007927977,2.9213,2606.6,2606.5,0.76718]
[1752007928880,0.676,2606.8,2606.7,0.76714]
[1752007929081,1.3259,2606.8,2606.7,0.76714]
[1752007929282,2.3323,2606.8,2606.7,0.76714]
[1752007930782,0.6499,2606.8,2606.7,0.76714]
[1752007930981,1.6563,2606.8,2606.7,0.76714]
[1752007931580,0.6499,2606.8,2606.7,0.76714]
[1752007931883,3.2078,2607.2,2606.9,0.76708]
[1752007932182,1.6563,2607.1,2607.0,0.76705]
[1752007932382,1.6563,2607.1,2607.0,1.40825]
[1752007933080,0.6499,2607.1,2607.0,1.40825]
[1752007934085,1.6563,2607.1,2607.0,1.40825]
[1752007934478,0.6499,2607.1,2607.0,1.40825]
[1752007934985,1.6563,2607.1,2607.0,1.40825]
[1752007951503,1.6563,2607.1,2607.0,0.76705]
[1752007954110,3.74216552,2607.1,2606.9,0.76706]
[1752007954311,2.406,2607.0,2606.9,0.76708]
[1752007954511,3.0627,2607.0,2606.9,0.76708]
[1752007954907,4.11779168,2607.0,2606.9,0.76708]
[1752007955609,4.88484168,2607.0,2606.9,0.76708]
[1752007956310,4.11779168,2607.0,2606.9,0.76708]
[1752007956508,4.11779168,2607.0,2606.6,1.9179]
[1752007956813,1.31901157,2606.8,2606.7,0.76711]
[1752007957010,2.99251157,2606.8,2606.7,0.76711]
[1752007957208,4.37161157,2606.8,2606.7,0.76711]
[1752007959318,5.13872157,2606.8,2606.7,0.76711]
[1752007961417,3.0526,2606.8,2606.7,0.76711]
[1752007970326,3.81972,2606.8,2606.6,0.76714]
[1752007970529,2.397,2606.7,2606.6,0.76714]
[1752007970725,3.0806,2606.7,2606.6,0.76714]
[1752007974223,3.84774,2606.7,2606.6,0.76714]
[1752007974424,3.0806,2606.7,2606.6,0.76714]
[1752007974831,3.84774,2606.7,2606.6,0.76714]
[1752007978535,3.0806,2606.7,2606.6,0.76714]
[1752007978834,3.84774,2606.7,2606.6,0.76714]
[1752007981030,3.0806,2606.7,2606.6,0.76714]
[1752007981229,3.84774,2606.7,2606.6,0.76714]
[1752007983138,3.0806,2606.7,2606.3,7.81085142]
[1752007983441,0.76731,2606.1,2606.0,4.60305142]
[1752007983638,2.76133722,2606.1,2606.0,5.37038142]
[1752007985249,2.76133722,2606.1,2606.0,0.76733]
[1752007986848,1.7062,2606.1,2606.0,0.76733]
[1752007992251,1.7062,2606.1,2606.0,2.08689899]
[1752007992252,0.6836,2606.1,2606.0,2.08689899]
[1752007993949,3.2078,2606.4,2606.0,2.08689899]
[1752007993950,1.0226,2606.4,2606.3,0.76725]
[1752007994150,1.7062,2606.4,2606.3,0.76725]
[1752007999561,6.23356899,2606.4,2606.3,0.76725]
[1752007999758,7.49806899,2606.4,2605.7,3.2078]
[1752007999948,1.31956899,2606.2,2606.1,0.76731]
[1752008000152,3.02576899,2606.2,2606.1,0.76731]
[1752008000359,4.29026899,2606.2,2606.1,0.76731]
[1752008000657,2.9707,2606.2,2606.1,0.76731]
[1752008003057,2.9707,2606.2,2605.7,3.2078]
[1752008003058,11.20848899,2606.2,2605.7,3.2078]
[1752008003261,11.20848899,2606.2,2605.5,0.76748]
[1752008003262,2.08697899,2605.8,2605.5,0.76748]
[1752008003559,1.95436899,2605.6,2605.5,0.76749]
[1752008004059,4.25946899,2605.6,2605.5,0.76749]
[1752008004462,2.9399,2605.6,2605.5,0.76749]
[1752008006161,9.25946899,2605.6,2605.1,3.2078]
[1752008006360,1.31956899,2605.4,2605.3,0.76755]
[1752008006564,4.5855,2605.5,2605.4,0.76752]
[1752008006761,4.5855,2605.5,2605.1,5.12681]
[1752008006762,0.76755,2605.3,2605.2,0.663]
[1752008006970,1.95436899,2605.3,2605.1,3.97539]
[1752008007169,1.7142,2605.2,2605.1,3.97539]
[1752008007365,2.349,2605.2,2605.1,3.97539]
[1752008010171,2.349,2605.2,2605.1,0.76759]
[1752008010372,3.7027,2605.2,2605.1,0.76759]
[1752008010576,4.47028,2605.2,2605.0,0.76762]
[1752008010775,5.56036899,2605.1,2605.0,0.76762]
[1752008010972,7.54886899,2605.1,2605.0,0.76762]
[1752008011172,6.2293,2605.1,2605.0,0.76764]
[1752008011372,7.54886899,2605.1,2605.0,0.76764]
[1752008012579,8.31647899,2605.1,2605.0,0.76764]
[1752008013981,7.54886899,2605.1,2605.0,0.76764]